bitfinex/quotes_SOLUSD_20211001
["timestamp","ask_amount","ask_price","bid_price","bid_amount"]
[1633070460984,29.46573986,141.02,140.94,22.45588761]
[1633070461384,29.46573986,141.02,140.94,1.92415357]
[1633070461582,29.46573986,141.02,140.93,1.92988549]
[1633070462185,29.46573986,141.02,140.92,1.93321761]
[1633070462383,29.46573986,141.02,140.93,1.93150803]
[1633070462985,29.46573986,141.02,140.92,1.94236938]
[1633070463187,113.14032506,141.02,140.9,1.95417783]
[1633070463585,113.16120506,141.02,140.89,1.94893632]
[1633070463787,113.14032506,141.02,140.89,1.94893632]
[1633070463987,75.37288,141.01,140.88,1.95532292]
[1633070464187,25.20337433,140.99,140.88,1.95532292]
[1633070464386,3.04088,140.98,140.87,1.96210589]
[1633070464591,8.67630961,140.98,140.87,1.96210589]
[1633070464787,27.16430961,140.98,140.87,1.96210589]
[1633070465587,27.16430961,140.98,140.87,29.44594964]
[1633070465787,3.04088,140.98,140.87,29.44594964]
[1633070465990,3.02,140.98,140.89,1.95291575]
[1633070466389,3.02,140.98,140.88,1.96148175]
[1633070466787,3.02,140.98,140.87,1.9618447]
[1633070466988,8.65542961,140.98,140.86,1.97236208]
[1633070467387,38.47952134,140.98,140.86,1.97236208]
[1633070468792,38.47952134,140.98,140.86,28.18297192]
[1633070470394,38.47952134,140.98,140.87,1.96496951]
[1633070470891,38.47952134,140.98,140.86,28.17813389]
[1633070471290,38.47952134,140.98,140.87,1.96970016]
[1633070471703,38.47952134,140.98,140.86,1.9753356]
[1633070472294,38.47952134,140.98,140.87,1.98006838]
[1633070473094,38.47952134,140.98,140.86,32.07694315]
[1633070473296,38.47952134,140.98,140.87,1.97915047]
[1633070474096,38.47952134,140.98,140.86,32.08283849]
[1633070474700,38.47952134,140.98,140.86,1.98487251]
[1633070475096,17.7559,140.95,140.86,1.98487251]
[1633070475297,3.02,140.94,140.86,1.98487251]
[1633070475699,21.96955208,140.93,140.86,1.98487251]
[1633070476099,3.02,140.92,140.86,1.98487251]
[1633070476298,8.65542961,140.92,140.84,1.99162281]
[1633070476499,8.65542961,140.92,140.83,1.99864312]
[1633070476500,60.20315559,140.91,140.83,1.99864312]
[1633070476699,3.02,140.9,140.83,1.99864312]
[1633070476899,8.65542961,140.9,140.82,2.00401908]
[1633070477102,23.34714635,140.89,140.82,2.00401908]
[1633070478899,23.34714635,140.89,140.81,2.00707316]
[1633070479500,8.65542961,140.9,140.81,2.00707316]
[1633070479699,75.8288,140.92,140.82,2.0110901]
[1633070479900,75.8288,140.92,140.81,3.02]
[1633070479901,3.02,140.92,140.83,2.00251246]
[1633070480499,21.91698075,140.91,140.83,2.00251246]
[1633070480900,21.91698075,140.91,140.83,26.32057164]
[1633070481101,3.02,140.92,140.84,1.99019905]
[1633070481303,75.3197,140.95,140.85,1.98953744]
[1633070481304,3.02,140.94,140.85,1.98953744]
[1633070481501,3.02,140.94,140.84,1.99372625]
[1633070482101,25.60894954,140.93,140.85,1.99191612]
[1633070482302,25.60894954,140.93,140.84,1.99275262]
[1633070482501,25.60894954,140.93,140.85,1.99273017]
[1633070482902,28.62894954,140.93,140.84,1.99396131]
[1633070485323,28.62894954,140.93,140.85,27.1084009]
[1633070485523,3.02,140.93,140.86,1.98248568]
[1633070486128,3.02,140.95,140.86,1.98248568]
[1633070486323,3.02,140.95,140.87,1.98097461]
[1633070486523,3.02,140.95,140.88,23.968516]
[1633070486723,3.02,140.95,140.87,1.98097461]
[1633070486925,3.02,140.95,140.86,1.98488808]
[1633070487124,5.63542961,140.94,140.86,1.98488808]
[1633070487325,5.63542961,140.94,140.85,1.99843466]
[1633070487326,3.02,140.93,140.85,1.99843466]
[1633070487725,24.14352448,140.92,140.85,1.99843466]
[1633070489525,24.14352448,140.92,140.86,2.00154756]
[1633070490528,29.77895409,140.92,140.85,2.00250523]
[1633070491327,24.14352448,140.92,140.86,1.99862482]
[1633070491525,24.14352448,140.92,140.87,1.991875]
[1633070492926,29.77895409,140.92,140.86,1.99382399]
[1633070493729,24.14352448,140.92,140.86,1.99382399]
[1633070493928,24.14352448,140.92,140.87,1.98839869]
[1633070494931,24.14352448,140.92,140.86,1.99599159]
[1633070495129,24.14352448,140.92,140.87,1.9939205]
[1633070499531,24.14352448,140.92,140.89,2.00666457]
[1633070500933,24.14352448,140.92,140.88,2.0120542]
[1633070501534,24.14352448,140.92,140.89,2.01169668]
[1633070503235,24.14352448,140.92,140.88,2.01973736]
[1633070503636,3.02,140.91,140.88,2.01973736]
[1633070503836,3.02,140.91,140.87,2.03336108]
[1633070504037,8.65542961,140.91,140.87,2.03336108]
[1633070504239,8.65542961,140.91,140.86,2.03321236]
[1633070507142,68.8585852,140.91,140.86,2.03321236]
[1633070507944,68.8585852,140.91,140.85,2.05518259]
[1633070508141,16.50179202,140.9,140.84,2.05528412]
[1633070508342,26.20501234,140.88,140.84,2.05528412]
[1633070508541,3.02,140.87,140.84,2.05528412]
[1633070508743,3.02,140.87,140.85,2.0550269]
[1633070508942,3.02,140.87,140.86,2.05491525]
[1633070509346,3.2703,140.87,140.86,2.05491525]
[1633070509743,3.2703,140.87,140.85,2.05491516]
[1633070510344,3.2703,140.87,140.84,4.10926286]
[1633070510545,0.2503,140.87,140.84,0.0001]
[1633070510745,23.95150098,140.82,140.79,6.16474574]
[1633070510945,23.95150098,140.82,140.76,6.16583518]
[1633070511549,26.97150098,140.82,140.74,535.45793094]
[1633070511745,27.2650055,140.81,140.73,79.73053965]
[1633070512146,3.02,140.8,140.73,79.73053965]
[1633070512345,3.02,140.8,140.73,6.16693965]
[1633070512945,3.02,140.8,140.72,27.87698159]
[1633070513148,0.2503,140.79,140.72,27.87698159]
[1633070513945,0.2503,140.79,140.72,21.71089711]
[1633070517053,0.2503,140.79,140.73,14.75736379]
[1633070517249,0.2503,140.79,140.73,3.02]
[1633070517449,0.2503,140.81,140.73,3.02]
[1633070524559,0.2503,140.81,140.73,24.392]
[1633070525958,0.2503,140.81,140.78,2.05384932]
[1633070526362,0.2503,140.81,140.77,2.05394085]
[1633070528864,3.2703,140.81,140.77,2.05394085]
[1633070529064,38.72982134,140.81,140.75,2.0543723]
[1633070529266,38.72982134,140.81,140.74,2.05443187]
[1633070529467,61.86027976,140.81,140.75,2.05432788]
[1633070529668,32.03618803,140.81,140.75,2.05432788]
[1633070529866,32.03618803,140.81,140.76,2.05429794]
[1633070531066,29.01618803,140.81,140.76,2.05429794]
[1633070531667,29.01618803,140.81,140.77,2.05450581]
[1633070531869,0.2503,140.81,140.77,2.05450581]
[1633070532475,0.2503,140.81,140.78,2.05439194]
[1633070532869,0.2503,140.81,140.79,2.05452997]
[1633070535874,0.2503,140.81,140.73,6.16470424]
[1633070535875,0.2503,140.81,140.78,2.05515602]
[1633070536477,3.2703,140.81,140.78,2.05515602]
[1633070536874,26.29637536,140.8,140.78,2.05515602]
[1633070537275,0.2503,140.79,140.78,2.05515602]
[1633070537474,0.2503,140.79,140.74,26.94264009]
[1633070539876,0.2503,140.79,140.74,33.10920796]
[1633070540278,0.2503,140.8,140.74,33.10920796]
[1633070540877,0.2503,140.8,140.75,17.91636865]
[1633070543176,0.2503,140.8,140.74,6.1684452]
[1633070544782,8.65542961,140.79,140.73,6.16901364]
[1633070544986,8.65542961,140.79,140.71,6.16974879]
[1633070545782,23.81996148,140.78,140.71,6.16974879]
[1633070545981,3.02,140.77,140.71,6.16974879]
[1633070546180,3.02,140.77,140.7,6.16904238]
[1633070548182,8.65542961,140.77,140.69,6.16841445]
[1633070548383,0.2503,140.76,140.69,6.16841445]
[1633070551283,0.2503,140.76,140.7,27.10092382]
[1633070553188,0.2503,140.76,140.69,6.16841445]
[1633070553586,0.2503,140.76,140.68,6.16761364]
[1633070554186,0.2503,140.76,140.68,33.21052106]
[1633070556091,0.2503,140.76,140.68,32.21052106]
[1633070556289,0.2503,140.76,140.69,11.71585896]
[1633070556489,0.2503,140.76,140.69,33.80385896]
[1633070556688,0.2503,140.76,140.7,11.7154738]
[1633070557088,0.2503,140.78,140.71,27.36310674]
[1633070558294,0.2503,140.78,140.72,11.71460432]
[1633070558489,0.2503,140.78,140.72,41.16503393]
[1633070558690,0.2503,140.78,140.73,17.34859665]
[1633070558890,0.2503,140.78,140.74,3.02]
[1633070559091,0.2503,140.78,140.75,29.05033333]
[1633070559289,0.2503,140.78,140.75,53.21433333]
[1633070559488,0.2503,140.78,140.76,11.71210755]
[1633070559690,0.2503,140.78,140.77,40.02]
[1633070559891,0.2503,140.78,140.77,3.02]
[1633070560089,0.2503,140.81,140.77,3.02]
[1633070560690,2.817761,140.81,140.78,28.63435426]
[1633070560893,2.817761,140.81,140.78,45.83435426]
[1633070564296,6.1e-05,140.81,140.79,3.02]
[1633070566198,6.1e-05,140.81,140.79,8.65542961]
[1633070566599,3.02,140.92,140.82,23.95150098]
[1633070566798,3.04088,140.94,140.85,2.05248303]
[1633070566998,3.02,140.94,140.85,17.39448303]
[1633070567198,2.52,140.94,140.86,2.05223787]
[1633070567397,2.52,140.94,140.85,17.39440478]
[1633070567596,2.52,140.94,140.87,22.84642832]
[1633070568799,0.02088,140.98,140.87,31.50185793]
[1633070568800,3.04088,140.98,140.87,31.50185793]
[1633070569000,3.02,140.98,140.87,33.55316931]
[1633070569198,3.02,141.0,140.88,2.0512783]
[1633070569400,3.02,141.0,140.89,3.02]
[1633070569599,30.29626482,141.0,140.9,26.5797626]
[1633070570000,3.02,141.0,140.9,26.5797626]
[1633070570201,3.02,141.0,140.9,29.5997626]
[1633070571002,25.48076972,141.0,140.9,29.5997626]
[1633070572201,3.02,141.0,140.9,29.5997626]
[1633070572400,78.9846,141.03,140.9,29.5997626]
[1633070572804,3.02,141.03,140.9,29.5997626]
[1633070573402,29.71919871,141.03,140.9,29.5997626]
[1633070573804,26.69919871,141.03,140.9,29.5997626]
[1633070574203,123.1531373,141.06,140.9,29.5997626]
[1633070574402,80.26868,141.06,140.91,5.63542961]
[1633070574602,80.26868,141.06,140.92,3.02]
[1633070574603,77.2278,141.06,140.92,3.02]
[1633070574804,77.2278,141.06,140.92,5.04033309]
[1633070575003,77.2278,141.06,140.93,76.23542961]
[1633070575203,75.6839,141.09,140.93,76.23542961]
[1633070575204,26.40404837,141.08,140.94,33.11508522]
[1633070575403,3.02,141.09,140.94,62.30251483]
[1633070575604,3.02,141.11,140.95,5.63542961]
[1633070575803,3.02,141.11,140.96,3.02]
[1633070576002,3.02,141.13,140.97,8.01171]
[1633070576202,3.02,141.13,140.98,3.02]
[1633070576405,24.66376173,141.12,140.99,23.69691793]
[1633070576601,27.68376173,141.12,141.0,3.02]
[1633070576803,0.02088,141.11,141.0,3.02]
[1633070579103,3.02,141.1,140.99,23.69691793]
[1633070579303,3.02,141.1,140.98,3.02]
[1633070579905,77.5041,141.1,140.98,3.02]
[1633070580306,26.49055046,141.09,140.99,25.60243987]
[1633070581710,3.02,141.1,140.99,25.60243987]
[1633070582709,30.15193622,141.09,140.99,25.60243987]
[1633070583112,30.15193622,141.09,140.98,3.02]
[1633070583910,74.3161,141.08,140.98,3.02]
[1633070584312,30.15193622,141.09,140.98,24.86708887]
[1633070586725,30.15193622,141.09,140.98,40.87908887]
[1633070587316,30.15193622,141.09,140.98,19.032]
[1633070587516,3.02,141.08,140.96,3.02]
[1633070588317,3.02,141.08,140.96,28.25410889]
[1633070590339,3.02,141.08,140.96,3.02]
[1633070590539,25.23410889,140.96,140.92,1.99519241]
[1633070590740,6.24471021,140.96,140.91,0.02088]
[1633070590943,23.21671021,140.96,140.91,0.02088]
[1633070591139,28.85213982,140.96,140.9,0.02088]
[1633070591340,27.76086035,140.95,140.88,60.0]
[1633070591741,5.63542961,140.94,140.88,60.0]
[1633070591943,47.0,140.93,140.83,2.0509349]
[1633070592145,3.02,140.92,140.83,2.0509349]
[1633070592355,3.02,140.92,140.82,23.95150098]
[1633070592551,34.37705243,140.91,140.82,23.95150098]
[1633070592752,3.02,140.9,140.82,23.95150098]
[1633070593152,22.55313303,140.9,140.82,23.95150098]
[1633070593352,22.55313303,140.9,140.82,26.00252926]
[1633070593551,3.02,140.94,140.83,3.02]
[1633070593754,3.02,140.94,140.83,5.07117215]
[1633070594153,30.34546106,140.94,140.84,24.5616019]
[1633070594751,30.34546106,140.94,140.85,2.04774736]
[1633070596451,30.34546106,140.94,140.84,24.53956566]
[1633070596655,30.34546106,140.94,140.85,2.02665778]
[1633070597552,30.34546106,140.94,140.84,24.53035933]
[1633070597753,30.34546106,140.94,140.85,2.01991552]
[1633070597953,30.34546106,140.94,140.84,24.5321056]
[1633070599056,3.02,140.94,140.84,24.5321056]
[1633070599254,3.02,140.94,140.85,2.01575908]
[1633070600256,3.02,140.94,140.84,24.54296856]
[1633070600654,19.65644777,140.94,140.84,22.51054305]
[1633070600855,19.65644777,140.94,140.83,348.94770857]
[1633070601455,19.65644777,140.94,140.83,346.90326898]
[1633070601858,19.65644777,140.94,140.84,27.29021735]
[1633070603861,26.15542205,140.92,140.84,27.29021735]
[1633070604060,29.17542205,140.92,140.84,27.29021735]
[1633070604258,34.81085166,140.92,140.84,27.29021735]
[1633070604862,29.17542205,140.92,140.84,27.29021735]
[1633070605259,34.81085166,140.92,140.84,27.29021735]
[1633070605460,34.81085166,140.92,140.82,23.95150098]
[1633070605662,29.17542205,140.92,140.82,23.95150098]
[1633070605862,34.81085166,140.92,140.82,23.95150098]
[1633070606460,34.81085166,140.92,140.82,47.13614244]
[1633070607061,29.17542205,140.92,140.82,47.13614244]
[1633070609165,34.81085166,140.92,140.82,47.13614244]
[1633070609565,34.81085166,140.92,140.82,23.95150098]
[1633070609765,48.28130267,140.92,140.82,23.95150098]
[1633070609968,42.64587306,140.92,140.82,23.95150098]
[1633070610566,42.64587306,140.92,140.82,47.79611189]
[1633070612366,48.28130267,140.92,140.82,47.79611189]
[1633070612569,42.64587306,140.92,140.82,47.79611189]
[1633070613966,48.28130267,140.92,140.82,23.95150098]
[1633070614869,74.87023954,140.92,140.82,23.95150098]
[1633070615871,48.28130267,140.92,140.82,23.95150098]
[1633070617474,48.28130267,140.92,140.82,26.00449285]
[1633070618677,48.28130267,140.92,140.82,23.95150098]
[1633070619483,48.28130267,140.92,140.82,26.00546956]
[1633070619878,4.84089056,140.82,140.79,4.10793715]
[1633070620079,22.37889056,140.82,140.78,462.86818995]
[1633070620280,22.37889056,140.82,140.64,75.41]
[1633070620281,3.02,140.81,140.74,4.13008987]
[1633070620478,3.02,140.81,140.74,4.10920987]
[1633070620878,3.02,140.81,140.74,30.910383]
[1633070621080,3.02,140.81,140.75,7.81123876]
[1633070621280,3.02,140.81,140.75,7.51123876]
[1633070621478,3.02,140.81,140.74,26.80117313]
[1633070622496,3.02,140.81,140.74,30.90967396]
[1633070622679,4.84089056,140.82,140.74,30.90967396]
[1633070622882,4.84089056,140.82,140.75,4.10815908]
[1633070623479,26.74642905,140.82,140.74,26.80117313]
[1633070623879,26.74642905,140.82,140.74,30.90925375]
[1633070624079,26.74642905,140.82,140.74,26.80117313]
[1633070624379,26.74642905,140.82,140.73,358.36132424]
[1633070624780,3.02,140.81,140.73,358.36132424]
[1633070625383,3.02,140.81,140.74,21.71991672]
[1633070626379,3.02,140.81,140.73,358.36132424]
[1633070629581,3.02,140.81,140.72,77.118]
[1633070630684,3.02,140.81,140.71,27.8567972]
[1633070637891,3.02,140.81,140.7,7.12721081]
[1633070638094,53.05292203,140.81,140.68,492.08550516]
[1633070638293,78.87921637,140.81,140.68,492.08550516]
[1633070638498,9.8313446,140.8,140.68,487.97726422]
[1633070638695,3.02,140.79,140.68,487.97726422]
[1633070638893,26.9321894,140.78,140.68,487.97726422]
[1633070639093,3.02,140.77,140.68,487.97726422]
[1633070639892,3.02,140.77,140.68,492.08572036]
[1633070640094,3.02,140.79,140.68,492.08572036]
[1633070640295,3.02,140.79,140.69,4.10813429]
[1633070640693,3.02,140.81,140.7,3.02]
[1633070641095,28.37870453,140.81,140.71,28.66043525]
[1633070643996,28.37870453,140.81,140.69,4.11012976]
[1633070644795,34.01413414,140.81,140.7,21.87852211]
[1633070645196,34.01413414,140.81,140.7,25.98910793]
[1633070645796,28.37870453,140.81,140.7,25.98910793]
[1633070646497,28.37870453,140.81,140.71,4.11133279]
[1633070646896,28.37870453,140.81,140.72,4.11120088]
[1633070647097,28.37870453,140.81,140.71,4.11131214]
[1633070647899,28.37870453,140.81,140.73,24.06885038]
[1633070648903,3.02,140.81,140.73,24.06885038]
[1633070649102,3.02,140.81,140.73,45.52377786]
[1633070649304,3.02,140.81,140.74,4.11156381]
[1633070649801,32.09284612,140.81,140.74,4.11156381]
[1633070650605,3.02,140.81,140.74,4.11156381]
[1633070650806,3.02,140.81,140.74,18.61156381]
[1633070651011,5.63542961,140.8,140.74,4.11156381]
[1633070651207,3.02,140.79,140.7,4.11285257]
[1633070651409,3.02,140.79,140.69,4.11312306]
[1633070651608,5.63542961,140.78,140.69,4.11312306]
[1633070651806,5.63542961,140.78,140.67,6.16927885]
[1633070651807,24.75139653,140.76,140.68,492.0901644]
[1633070654307,24.75139653,140.76,140.68,4.11290018]
[1633070654507,3.02,140.75,140.68,4.11290018]
[1633070655511,3.02,140.75,140.69,22.79199981]
[1633070655708,3.02,140.75,140.69,26.90356389]
[1633070656111,3.02,140.75,140.7,4.11118002]
[1633070657512,31.50104886,140.75,140.7,4.11118002]
[1633070657913,28.48104886,140.75,140.7,4.11118002]
[1633070659913,28.48104886,140.75,140.69,4.11188804]
[1633070665221,28.48104886,140.75,140.7,4.1117748]
[1633070666525,28.48104886,140.75,140.69,4.11226741]
[1633070667325,28.48104886,140.75,140.7,4.11229669]
[1633070667526,28.48104886,140.75,140.69,4.11231936]
[1633070668527,28.48104886,140.75,140.7,4.11219091]
[1633070668727,28.48104886,140.75,140.69,4.11230343]
[1633070679266,31.50104886,140.75,140.68,4.11319243]
[1633070679467,49.28144886,140.75,140.65,4.11391452]
[1633070680267,49.28144886,140.75,140.66,4.11360306]
[1633070680468,49.28144886,140.75,140.66,25.75434885]
[1633070680670,49.28144886,140.75,140.66,29.8678367]
[1633070680867,3.02,140.75,140.67,4.11343627]
[1633070681067,3.02,140.75,140.69,4.11308696]
[1633070682866,3.02,140.75,140.69,28.60074197]
[1633070684268,3.02,140.75,140.69,4.11308696]
[1633070684869,3.02,140.75,140.68,4.11311424]
[1633070685071,3.02,140.75,140.69,4.11308993]
[1633070685469,3.02,140.75,140.7,4.11276016]
[1633070685672,3.02,140.75,140.67,28.0972883]
[1633070685673,3.02,140.75,140.69,4.11283949]
[1633070685869,3.02,140.75,140.7,4.11269284]
[1633070686077,3.02,140.75,140.69,4.11282938]
[1633070686670,3.02,140.75,140.7,4.11294288]
[1633070687272,3.02,140.75,140.69,4.11296781]
[1633070687672,3.02,140.75,140.68,4.11347313]
[1633070688271,5.63542961,140.74,140.68,4.11347313]
[1633070688472,25.1489735,140.72,140.68,4.11347313]
[1633070688675,25.1489735,140.72,140.64,11.92169031]
[1633070688676,3.02,140.71,140.64,4.11445854]
[1633070688872,8.65542961,140.71,140.64,4.11445854]
[1633070689270,8.65542961,140.71,140.62,371.93901875]
[1633070689271,8.65542961,140.71,140.63,4.11492277]
[1633070689472,26.59798767,140.71,140.63,4.11492277]
[1633070689676,26.59798767,140.71,140.62,376.05399986]
[1633070689871,26.59798767,140.71,140.62,4.11498111]
[1633070690670,101.86288767,140.71,140.62,4.11498111]
[1633070691673,96.22745806,140.71,140.62,4.11498111]
[1633070691873,96.22745806,140.71,140.61,4.11355817]
[1633070693270,96.22745806,140.71,140.6,4.11323837]
[1633070693470,96.22745806,140.71,140.58,6.17112735]
[1633070693471,96.22745806,140.71,140.61,4.1131692]
[1633070693872,96.22745806,140.71,140.6,4.11287951]
[1633070694872,122.88428382,140.71,140.6,4.11287951]
[1633070695675,122.88428382,140.71,140.61,25.061716]
[1633070695873,29.67682576,140.71,140.62,4.11193042]
[1633070696074,3.02,140.71,140.61,29.17377128]
[1633070696273,3.02,140.71,140.62,4.11199161]
[1633070696675,3.02,140.71,140.61,29.17378521]
[1633070696875,3.02,140.71,140.61,4.11206921]
[1633070697474,3.02,140.71,140.62,4.11195539]
[1633070697677,3.02,140.71,140.61,4.1119295]
[1633070697876,3.02,140.71,140.62,4.11193619]
[1633070699380,3.02,140.71,140.6,4.11230697]
[1633070701282,8.65542961,140.71,140.6,4.11230697]
[1633070701484,10.52239608,140.71,140.6,4.11230697]
[1633070701683,25.65909878,140.71,140.6,4.11230697]
[1633070702082,20.02366917,140.71,140.6,4.11230697]
[1633070702683,20.02366917,140.71,140.61,4.11212004]
[1633070703082,20.02366917,140.71,140.6,4.1123064]
[1633070703282,25.65909878,140.71,140.6,4.1123064]
[1633070704283,20.02366917,140.71,140.59,4.13339766]
[1633070704483,20.02366917,140.71,140.6,4.11225688]
[1633070705083,20.02366917,140.71,140.61,26.77391665]
[1633070705683,20.02366917,140.71,140.62,4.11191557]
[1633070706286,20.02366917,140.71,140.61,26.77401389]
[1633070707185,20.02366917,140.71,140.62,4.11217613]
[1633070708186,20.02366917,140.71,140.61,26.7743612]
[1633070708588,20.02366917,140.71,140.61,4.11256226]
[1633070709786,20.02366917,140.71,140.6,4.11295359]
[1633070709987,20.02366917,140.71,140.61,4.11291139]
[1633070710187,25.65909878,140.71,140.6,4.11311494]
[1633070710387,25.65909878,140.71,140.59,392.79105821]
[1633070710987,25.65909878,140.71,140.59,417.21833529]
[1633070711190,25.65909878,140.71,140.6,11.82505366]
[1633070713388,25.65909878,140.71,140.61,4.1133792]
[1633070713591,25.65909878,140.71,140.62,4.11314809]
[1633070714189,25.65909878,140.71,140.61,4.11333322]
[1633070714790,25.65909878,140.71,140.62,4.11357354]
[1633070715589,25.65909878,140.71,140.62,30.13660086]
[1633070715790,25.65909878,140.71,140.63,7.71438506]
[1633070716692,25.65909878,140.71,140.63,11.82922493]
[1633070717189,25.65909878,140.71,140.63,7.71438506]
[1633070717390,25.65909878,140.71,140.62,4.11509717]
[1633070717590,85.65909878,140.71,140.62,4.11509717]
[1633070717791,85.65909878,140.71,140.63,4.11585898]
[1633070718394,85.65909878,140.71,140.62,4.11595211]
[1633070718594,27.4187702,140.7,140.59,4.11691785]
[1633070718794,2.46107074,140.68,140.58,4.11712019]
[1633070718997,3.02,140.67,140.58,4.11712019]
[1633070719197,30.4387702,140.67,140.57,11.83661741]
[1633070719397,98.48157081,140.66,140.55,36.92409804]
[1633070719598,98.48157081,140.66,140.56,7.71704417]
[1633070719599,3.02,140.65,140.56,7.71704417]
[1633070719796,3.02,140.65,140.56,11.83336237]
[1633070720395,3.02,140.65,140.58,27.89612171]
[1633070720599,3.02,140.65,140.59,7.71514709]
[1633070722296,8.65542961,140.65,140.59,7.71514709]
[1633070722498,8.65542961,140.65,140.55,11.83083491]
[1633070723299,9.33479588,140.65,140.55,7.71535012]
[1633070724100,27.12819588,140.65,140.55,7.71535012]
[1633070725004,27.12819588,140.65,140.54,499.11791065]
[1633070725200,17.01448048,140.64,140.54,499.11791065]
[1633070725400,3.02,140.63,140.54,499.11791065]
[1633070725602,8.65542961,140.63,140.54,499.11791065]
[1633070725800,31.45848841,140.63,140.55,30.38398139]
[1633070725999,31.45848841,140.63,140.55,22.6704204]
[1633070726201,8.65542961,140.63,140.55,22.6704204]
[1633070726400,3.02,140.63,140.55,22.6704204]
[1633070726600,3.02,140.63,140.56,7.71299028]
[1633070726800,3.02,140.63,140.56,22.44399028]
[1633070727003,3.02,140.63,140.56,14.731]
[1633070727603,3.02,140.63,140.57,7.71274977]
[1633070727801,3.02,140.63,140.56,14.731]
[1633070728001,3.02,140.63,140.58,26.53961832]
[1633070729404,3.02,140.63,140.56,18.8450826]
[1633070729604,3.02,140.63,140.57,7.71294093]
[1633070729803,3.02,140.63,140.55,4.11427083]
[1633070729804,3.02,140.63,140.55,11.82715599]
[1633070730403,3.02,140.63,140.56,26.0126145]
[1633070730805,3.02,140.63,140.57,7.71292208]
[1633070734105,24.11359577,140.62,140.57,7.71292208]
[1633070734506,27.13359577,140.62,140.56,4.11408132]
[1633070734711,32.76902538,140.62,140.55,7.71317977]
[1633070734907,32.76902538,140.62,140.54,499.11791065]
[1633070736407,32.76902538,140.62,140.55,21.66154908]
[1633070738209,8.65542961,140.62,140.55,21.66154908]
[1633070738410,3.02,140.62,140.55,21.66154908]
[1633070739211,22.60586014,140.61,140.54,4.11498708]
[1633070739416,25.62586014,140.61,140.54,4.11498708]
[1633070739612,25.62586014,140.61,140.54,11.82909354]
[1633070739817,25.62586014,140.61,140.54,4.11498708]
[1633070740017,3.02,140.61,140.57,2.05756663]
[1633070741118,27.6325818,140.61,140.57,2.05756663]
[1633070741317,27.6325818,140.61,140.58,2.05762098]
[1633070741717,27.6325818,140.61,140.57,2.05764566]
[1633070742119,33.26801141,140.61,140.57,2.05764566]
[1633070742321,33.26801141,140.61,140.56,2.05789725]
[1633070742918,27.6325818,140.61,140.56,2.05789725]
[1633070743420,27.6325818,140.61,140.57,2.05789768]
[1633070743624,3.02,140.61,140.57,2.05789768]
[1633070744620,28.59703471,140.6,140.57,2.05789768]
[1633070744823,3.02,140.59,140.56,2.05812112]
[1633070746022,3.02,140.59,140.57,2.05829356]
[1633070746623,3.02,140.59,140.58,2.05844537]
[1633070746824,3.02,140.59,140.57,2.05846958]
[1633070747025,3.02,140.59,140.58,2.05843433]
[1633070747822,3.02,140.61,140.56,11.83501937]
[1633070748022,3.02,140.61,140.59,2.05850906]
[1633070752029,3.02,140.63,140.59,21.91250906]
[1633070752231,3.02,140.65,140.61,2.05843701]
[1633070752428,3.02,140.65,140.62,2.05829873]
[1633070752632,3.02,140.65,140.62,18.38329873]
[1633070752828,3.02,140.65,140.62,41.86763335]
[1633070753828,3.02,140.65,140.63,2.05810381]
[1633070754430,3.02,140.67,140.63,2.05810381]
[1633070754629,3.02,140.67,140.64,2.0577958]
[1633070755028,3.02,140.67,140.63,2.05783186]
[1633070755235,3.02,140.67,140.64,2.05772191]
[1633070755430,3.02,140.67,140.65,26.99476517]
[1633070755630,3.02,140.67,140.65,43.95776517]
[1633070756034,20.03448048,140.69,140.65,43.95776517]
[1633070756429,3.02,140.69,140.65,43.95776517]
[1633070756630,3.02,140.69,140.65,46.01519408]
[1633070757030,3.02,140.69,140.65,43.95776517]
[1633070757430,8.65542961,140.69,140.65,16.963]
[1633070757630,8.65542961,140.69,140.64,2.05746509]
[1633070758432,8.65542961,140.69,140.64,27.588708]
[1633070762036,5.63542961,140.69,140.64,27.588708]
[1633070763236,31.19493687,140.71,140.64,27.588708]
[1633070763437,8.65542961,140.73,140.64,42.378708]
[1633070763639,8.65542961,140.73,140.65,2.05642351]
[1633070763837,8.65542961,140.73,140.67,28.1648131]
[1633070771944,3.02,140.73,140.67,28.1648131]
[1633070772948,17.38241625,140.74,140.67,28.1648131]
[1633070774946,17.38241625,140.74,140.67,45.0748131]
[1633070778952,5.63542961,140.75,140.67,45.0748131]